fUSD/lending_fUSD_20250505
["ID","MTS","AMOUNT","RATE_DAILY","PERIOD"]
[360015982,1746479446508,-621.41,0.00019999,2]
[360015985,1746479446525,-621.41,0.00019999,2]
[360015987,1746479446534,-450.0,0.00019999,2]
[360015989,1746479446543,-450.0,0.00019999,2]
[360015991,1746479446552,-450.0,0.00019999,2]
[360015993,1746479446562,-621.41,0.00019999,2]
[360015995,1746479446571,-450.0,0.00019999,2]
[360015997,1746479446580,-621.41,0.00019999,2]
[360015999,1746479446589,-621.41,0.00019999,2]
[360016001,1746479446598,-450.0,0.00019999,2]
[360016003,1746479446607,-621.41,0.00019999,2]
[360016005,1746479446616,-450.0,0.00019999,2]
[360016006,1746479446627,-621.41,0.00019999,2]
[360016008,1746479446636,-450.0,0.00019999,2]
[360016010,1746479446645,-621.41,0.00019999,2]
[360016012,1746479446655,-450.0,0.00019999,2]
[360016015,1746479446667,-621.41,0.00019999,2]
[360016017,1746479446677,-621.41,0.00019999,2]
[360016019,1746479446686,-450.0,0.00019999,2]
[360016021,1746479446695,-621.53,0.00019999,2]
[360016023,1746479446705,-306.99,0.00019999,2]
[360016024,1746479446714,-515.97,0.00019999,2]
[360016027,1746479446724,-515.97,0.00019999,2]
[360016029,1746479446733,-515.97,0.00019999,2]
[360016031,1746479446743,-515.97,0.00019999,2]
[360016033,1746479446752,-515.97,0.00019999,2]
[360016035,1746479446761,-515.97,0.00019999,2]
[360016037,1746479446771,-515.97,0.00019999,2]
[360016039,1746479446780,-515.97,0.00019999,2]
[360016041,1746479446790,-515.97,0.00019999,2]
[360016043,1746479446799,-515.97,0.00019999,2]
[360016045,1746479446809,-515.97,0.00019999,2]
[360016047,1746479446819,-515.97,0.00019999,2]
[360016049,1746479446829,-515.97,0.00019999,2]
[360016051,1746479446838,-515.97,0.00019999,2]
[360016053,1746479446847,-515.97,0.00019999,2]
[360016055,1746479446857,-515.97,0.00019999,2]
[360016057,1746479446866,-515.97,0.00019999,2]
[360016059,1746479446876,-515.97,0.00019999,2]
[360016061,1746479446885,-515.97,0.00019999,2]
[360016063,1746479446896,-515.97,0.00019999,2]
[360016065,1746479446905,-516.02,0.00019999,2]
[360016067,1746479446915,-628.67,0.00019999,2]
[360016069,1746479446924,-628.67,0.00019999,2]
[360016071,1746479446933,-450.0,0.00019999,2]
[360016073,1746479446943,-628.67,0.00019999,2]
[360016075,1746479446952,-450.0,0.00019999,2]
[360016077,1746479446961,-628.67,0.00019999,2]
[360016079,1746479446970,-450.0,0.00019999,2]
[360016081,1746479446979,-628.67,0.00019999,2]
[360016083,1746479446988,-450.0,0.00019999,2]
[360016085,1746479446998,-628.67,0.00019999,2]
[360016087,1746479447008,-628.67,0.00019999,2]
[360016089,1746479447017,-450.0,0.00019999,2]
[360016091,1746479447026,-628.67,0.00019999,2]
[360016093,1746479447035,-287.84,0.00019999,2]
[360016095,1746479447044,-628.67,0.00019999,2]
[360016097,1746479447054,-628.67,0.00019999,2]
[360016099,1746479447063,-628.67,0.00019999,2]
[360016101,1746479447073,-628.67,0.00019999,2]
[360016103,1746479447082,-628.67,0.00019999,2]
[360016105,1746479447092,-628.67,0.00019999,2]
[360016107,1746479447101,-628.67,0.00019999,2]
[360016109,1746479447112,-628.67,0.00019999,2]
[360016111,1746479447121,-628.67,0.00019999,2]
[360016113,1746479447130,-628.67,0.00019999,2]
[360016115,1746479447140,-628.67,0.00019999,2]
[360016117,1746479447150,-628.67,0.00019999,2]
[360016119,1746479447159,-628.79,0.00019999,2]
[360016121,1746479447168,-450.0,0.00019999,2]
[360016123,1746479447177,-450.0,0.00019999,2]
[360016125,1746479447186,-450.0,0.00019999,2]
[360016127,1746479447195,-450.0,0.00019999,2]
[360016129,1746479447204,-450.0,0.00019999,2]
[360016131,1746479447214,-450.0,0.00019999,2]
[360016133,1746479447223,-379.13,0.00019999,2]
[360016135,1746479447232,-3499.65,0.00019999,2]
[360016137,1746479447241,-3499.65,0.00019999,2]
[360016139,1746479447250,-3499.65,0.00019999,2]
[360016141,1746479447259,-3499.65,0.00019999,2]
[360016143,1746479447269,-3499.65,0.00019999,2]
[360016145,1746479447278,-3499.65,0.00019999,2]
[360016147,1746479447288,-3499.65,0.00019999,2]
[360016149,1746479447296,-3499.65,0.00019999,2]
[360016150,1746479447305,-3499.65,0.00019999,2]
[360016152,1746479447314,-3499.65,0.00019999,2]
[360016154,1746479447323,-3499.65,0.00019999,2]
[360016156,1746479447333,-3499.65,0.00019999,2]
[360016158,1746479447342,-3499.65,0.00019999,2]
[360016160,1746479447351,-3499.65,0.00019999,2]
[360016162,1746479447360,-3499.65,0.00019999,2]
[360016164,1746479447370,-3499.65,0.00019999,2]
[360016166,1746479447379,-3499.65,0.00019999,2]
[360016168,1746479447388,-3499.65,0.00019999,2]
[360016170,1746479447398,-450.0,0.00019999,2]
[360016172,1746479447407,-3499.65,0.00019999,2]
[360016174,1746479447417,-450.0,0.00019999,2]
[360016176,1746479447426,-3499.65,0.00019999,2]
[360016178,1746479447435,-450.0,0.00019999,2]
[360016180,1746479447445,-450.0,0.00019999,2]
[360016182,1746479447454,-450.0,0.00019999,2]
[360016184,1746479447464,-3499.79,0.00019999,2]
[360016186,1746479447473,-450.0,0.00019999,2]
[360016201,1746479447589,-450.0,0.00019999,2]
[360016203,1746479447612,-199.295,0.00019999,2]
[360016205,1746479447622,-662.16,0.00019999,2]
[360016207,1746479447631,-662.16,0.00019999,2]
[360016209,1746479447640,-662.16,0.00019999,2]
[360016211,1746479447650,-662.16,0.00019999,2]
[360016213,1746479447659,-662.16,0.00019999,2]
[360016215,1746479447668,-662.16,0.00019999,2]
[360016217,1746479447678,-662.16,0.00019999,2]
[360016219,1746479447687,-662.16,0.00019999,2]
[360016221,1746479447696,-662.16,0.00019999,2]
[360016223,1746479447706,-662.16,0.00019999,2]
[360016225,1746479447715,-662.16,0.00019999,2]
[360016227,1746479447724,-662.16,0.00019999,2]
[360016229,1746479447734,-662.16,0.00019999,2]
[360016231,1746479447743,-662.16,0.00019999,2]
[360016233,1746479447752,-662.16,0.00019999,2]
[360016235,1746479447761,-662.16,0.00019999,2]
[360016237,1746479447770,-662.16,0.00019999,2]
[360016239,1746479447779,-662.16,0.00019999,2]
[360016241,1746479447788,-662.16,0.00019999,2]
[360016243,1746479447797,-662.16,0.00019999,2]
[360016245,1746479447807,-662.3850063,0.00019999,2]
[360016247,1746479447817,-450.0,0.00019999,2]
[360016249,1746479447826,-450.0,0.00019999,2]
[360016251,1746479447836,-450.0,0.00019999,2]
[360016253,1746479447846,-450.0,0.00019999,2]
[360016255,1746479447855,-476.94,0.00019999,2]
[360016257,1746479447865,-744.38,0.00019999,2]
[360016259,1746479447874,-744.38,0.00019999,2]
[360016260,1746479447884,-744.38,0.00019999,2]
[360016262,1746479447893,-744.38,0.00019999,2]
[360016264,1746479447902,-744.38,0.00019999,2]
[360016266,1746479447911,-744.38,0.00019999,2]
[360016268,1746479447921,-744.38,0.00019999,2]
[360016270,1746479447931,-744.38,0.00019999,2]
[360016273,1746479447941,-744.38,0.00019999,2]
[360016275,1746479447950,-744.38,0.00019999,2]
[360016277,1746479447959,-744.38,0.00019999,2]
[360016278,1746479447969,-744.38,0.00019999,2]
[360016280,1746479447979,-744.38,0.00019999,2]
[360016282,1746479447988,-744.38,0.00019999,2]
[360016284,1746479447998,-744.38,0.00019999,2]
[360016286,1746479448007,-744.38,0.00019999,2]
[360016288,1746479448016,-744.38,0.00019999,2]
[360016290,1746479448025,-744.38,0.00019999,2]
[360016292,1746479448034,-744.38,0.00019999,2]
[360016294,1746479448043,-744.38,0.00019999,2]
[360016296,1746479448052,-203.372984,0.00019999,2]
[360016298,1746479448061,-744.43,0.00019999,2]
[360016300,1746479448070,-465.68,0.00019999,2]
[360016302,1746479448080,-465.68,0.00019999,2]
[360016304,1746479448089,-465.68,0.00019999,2]
[360016306,1746479448098,-465.68,0.00019999,2]
[360016308,1746479448107,-465.68,0.00019999,2]
[360016310,1746479448116,-465.68,0.00019999,2]
[360016311,1746479448125,-465.68,0.00019999,2]
[360016312,1746479448135,-465.68,0.00019999,2]
[360016313,1746479448145,-465.68,0.00019999,2]
[360016314,1746479448154,-450.0,0.00019999,2]
[360016315,1746479448163,-465.68,0.00019999,2]
[360016316,1746479448172,-450.0,0.00019999,2]
[360016317,1746479448181,-465.68,0.00019999,2]
[360016318,1746479448190,-450.0,0.00019999,2]
[360016319,1746479448200,-465.68,0.00019999,2]
[360016320,1746479448210,-450.0,0.00019999,2]
[360016321,1746479448220,-465.68,0.00019999,2]
[360016322,1746479448230,-450.0,0.00019999,2]
[360016323,1746479448239,-450.0,0.00019999,2]
[360016324,1746479448249,-465.68,0.00019999,2]
[360016326,1746479448259,-450.0,0.00019999,2]
[360016328,1746479448268,-465.68,0.00019999,2]
[360016330,1746479448278,-465.68,0.00019999,2]
[360016332,1746479448287,-450.0,0.00019999,2]
[360016334,1746479448297,-465.68,0.00019999,2]
[360016336,1746479448306,-450.0,0.00019999,2]
[360016338,1746479448315,-465.68,0.00019999,2]
[360016340,1746479448324,-450.0,0.00019999,2]
[360016342,1746479448334,-465.68,0.00019999,2]
[360016344,1746479448343,-450.0,0.00019999,2]
[360016346,1746479448352,-465.68,0.00019999,2]
[360016348,1746479448361,-450.0,0.00019999,2]
[360016350,1746479448371,-465.9,0.00019999,2]
[360016352,1746479448380,-450.0,0.00019999,2]
[360016354,1746479448389,-450.0,0.00019999,2]
[360016356,1746479448399,-450.0,0.00019999,2]
[360016358,1746479448408,-450.0,0.00019999,2]
[360016360,1746479448417,-450.0,0.00019999,2]
[360016362,1746479448428,-450.0,0.00019999,2]
[360016364,1746479448438,-450.0,0.00019999,2]
[360016366,1746479448447,-400.66,0.00019999,2]
[360016368,1746479448457,-388.949689,0.00019999,2]
[360016370,1746479448466,-150.0,0.00019999,2]
[360016372,1746479448476,-450.0,0.00019999,2]
[360016374,1746479448488,-232.6,0.00019999,2]
[360016376,1746479448498,-728.0,0.0002,2]
[360016378,1746479448507,-187636.88448525,0.0002,2]
[360016380,1746479448516,-70160.3023642,0.0002,2]
[360016382,1746479448526,-140420.849391,0.0002,2]
[360016384,1746479448537,-347993.96344864,0.0002,2]
[360016408,1746479448752,-134797.40071824,0.0002,2]
[360016410,1746479448765,-4990.82003339,0.0002,2]
[360016412,1746479448777,-2044.3348,0.0002,2]
[360016415,1746479448793,-516.66030752,0.0002,2]
[360016427,1746479448894,-371.099996,0.00019796,2]
[360016446,1746479449064,-323.5865,0.00019697,2]
[360016449,1746479449079,-78.900004,0.00019796,2]
[360016451,1746479449089,-450.0,0.00019895,2]
[360016453,1746479449099,-162.33,0.000199,2]
[360016455,1746479449109,-352.26,0.000199,2]
[360016457,1746479449120,-456.46,0.000199,2]
[360016459,1746479449132,-314.97,0.00019917,2]
[360016462,1746479449144,-342.18,0.00019998,2]
[360016464,1746479449156,-3374.55716363,0.0002,2]
[360016466,1746479449167,-1000.0,0.0002,2]
[360016468,1746479449177,-6215.56476244,0.0002,2]
[360016470,1746479449190,-3900.65469987,0.0002,2]
[360016473,1746479449204,-1361.0,0.0002,2]
[360016476,1746479449218,-1014.46113434,0.0002,2]
[360016478,1746479449231,-1634.0300504,0.0002,2]
[360016480,1746479449244,-500.0,0.0002,2]
[360017601,1746479646324,155.78,0.00018947,2]
[360017605,1746479775597,687.9,0.00017023,2]
[360017606,1746479775948,687.9,0.00019287,2]
[360017611,1746479881522,171.75,0.00015153,2]
[360017617,1746479979985,2390.2,0.00013699,2]
[360017618,1746479980006,2641.11,0.00013699,2]
[360017619,1746479980409,5031.31,0.00013699,2]
[360017620,1746479980934,200.0,0.00013699,2]
[360017621,1746479980955,2327.58,0.00013699,2]
[360017622,1746479980976,2503.73,0.00013699,2]
[360017623,1746479981412,5031.31,0.00013699,2]
[360017624,1746479981912,2464.96,0.00013699,2]
[360017625,1746479981933,2566.35,0.00013699,2]
[360017626,1746479982392,5031.31,0.00013699,2]
[360017627,1746479982787,2402.34,0.00013699,2]
[360017628,1746479982810,2628.97,0.00013699,2]
[360017629,1746479983225,5031.31,0.00013699,2]
[360017630,1746479984332,163.022522,0.00013699,2]
[360017631,1746479984354,2339.72,0.00013699,2]
[360017632,1746479984375,2528.567478,0.00013699,2]
[360017633,1746479985472,5031.31,0.00013699,2]
[360017634,1746479986001,2440.122522,0.00013699,2]
[360017635,1746479986022,2591.187478,0.00013699,2]
[360017636,1746479986411,5031.31,0.00013699,2]
[360017637,1746479986995,2377.502522,0.00013699,2]
[360017638,1746479987020,2653.807478,0.00013699,2]
[360017639,1746479987676,5031.31,0.00013699,2]
[360017640,1746479988088,193.12828262,0.00013699,2]
[360017641,1746479988110,2314.882522,0.00013699,2]
[360017642,1746479988131,2523.29919538,0.00013699,2]
[360017643,1746479988634,5031.31,0.00013699,2]
[360017644,1746479989047,2445.39080462,0.00013699,2]
[360017645,1746479989068,2585.91919538,0.00013699,2]
[360017646,1746479989507,5031.31,0.00013699,2]
[360017647,1746479990431,2382.77080462,0.00013699,2]
[360017648,1746479990454,2648.53919538,0.00013699,2]
[360017649,1746479991554,5031.40091367,0.00013699,2]
[360017662,1746480199922,500.0,0.00030133,120]
[360017663,1746480369555,166.64,0.00019471,2]
[360017665,1746480427956,1239.0445,0.000153,2]
[360017680,1746480435011,914.37539095,0.00015,2]
[360017681,1746480435034,1151.32035652,0.00015,2]
[360017734,1746480476207,877.14675173,0.0001,2]
[360017740,1746480498353,552.4581403,0.00018,2]
[360017745,1746480514585,192.936604,0.00018796,2]
[360017747,1746480547892,500.0,0.00019997,120]
[360017748,1746480548129,500.0,0.00019998,120]
[360017749,1746480548391,500.0,0.00019998,120]
[360017750,1746480548641,500.0,0.00019999,120]
[360017751,1746480548956,562.6701963,0.00019999,120]
[360017799,1746480556460,1000.0,0.00018914,2]
[360017805,1746480575934,250.0,0.00017,2]
[360017806,1746480577010,300.0,0.00019,2]
[360017807,1746480582941,1500.0,0.00019178,2]
[360017812,1746480631862,-934.33,0.00019795,2]
[360017813,1746480631919,-265.67,0.00019795,2]
[360017814,1746480631929,-300.0,0.00019795,2]
[360017815,1746480631940,-200.0,0.00019795,2]
[360017816,1746480631950,-153.29,0.00019796,2]
[360017817,1746480631960,-288.65647205,0.00019796,2]
[360017818,1746480631972,-161.34352795,0.00019796,2]
[360017819,1746480631982,-450.0,0.00019796,2]
[360017820,1746480631996,-357.1,0.00019796,2]
[360017821,1746480632005,-450.0,0.00019796,2]
[360017822,1746480632015,-450.0,0.00019796,2]
[360017823,1746480632024,-450.0,0.00019796,2]
[360017824,1746480632035,-546.71,0.00019796,2]
[360017825,1746480632045,-450.0,0.00019796,2]
[360017826,1746480632056,-450.0,0.00019796,2]
[360017827,1746480632067,-450.0,0.00019796,2]
[360017828,1746480632076,-450.0,0.00019796,2]
[360017829,1746480632086,-450.0,0.00019796,2]
[360017830,1746480632096,-450.0,0.00019796,2]
[360017831,1746480632105,-200.0,0.00019796,2]
[360017832,1746480632115,-206.0774038,0.00019799,2]
[360017833,1746480632123,-188.01072,0.000198,23]
[360017834,1746480632133,-3193.38761873,0.000198,5]
[360017835,1746480632142,-200.0,0.000198,2]
[360017836,1746480632152,-2000.0,0.0001984,2]
[360017837,1746480632162,-500.0,0.00019873,2]
[360017838,1746480632171,-207.4,0.00019874,2]
[360017839,1746480632180,-151.0,0.00019885,2]
[360017840,1746480632190,-151.0,0.00019885,2]
[360017841,1746480632199,-668.65185757,0.00019885,2]
[360017842,1746480632208,-999.99,0.00019886,2]
[360017843,1746480632218,-299.99,0.00019886,7]
[360017844,1746480632227,-1148.17,0.00019886,2]
[360017845,1746480632237,-9999.99,0.00019886,2]
[360017846,1746480632246,-2615.14,0.00019886,2]
[360017847,1746480632256,-150.99,0.00019886,2]
[360017849,1746480632266,-9634.54867173,0.00019886,2]
[360017851,1746480632282,-365.44132827,0.00019886,2]
[360017853,1746480632293,-694.02,0.00019887,2]
[360017855,1746480632303,-150.99,0.00019887,2]
[360017857,1746480632313,-241.768,0.00019889,2]
[360017859,1746480632322,-3492.55755857,0.0001989,2]
[360017861,1746480632331,-3492.55755852,0.00019891,2]
[360017863,1746480632341,-3492.55755852,0.00019892,2]
[360017865,1746480632350,-3492.55755852,0.00019893,2]
[360017867,1746480632359,-3492.55755852,0.00019894,2]
[360017869,1746480632369,-450.0,0.00019895,2]
[360017871,1746480632378,-3492.55755852,0.00019896,2]
[360017873,1746480632388,-3492.55755852,0.00019897,2]
[360017875,1746480632398,-3492.55755852,0.00019898,2]
[360017877,1746480632407,-479.94234129,0.00019898,2]
[360017879,1746480632416,-479.94234123,0.00019898,2]
[360017882,1746480632425,-479.94234123,0.00019898,2]
[360017884,1746480632435,-479.94234123,0.00019899,2]
[360017887,1746480632444,-479.94234123,0.00019899,2]
[360017890,1746480632454,-3492.55755852,0.00019899,2]
[360017893,1746480632463,-169.19077535,0.00019899,2]
[360017896,1746480632472,-479.94234123,0.00019899,2]
[360017898,1746480632481,-479.94234123,0.00019899,2]
[360017900,1746480632491,-479.94234123,0.000199,2]
[360017902,1746480632500,-479.94234123,0.000199,2]
[360017904,1746480632510,-12300.40558242,0.000199,2]
[360017906,1746480632519,-479.94234123,0.000199,2]
[360017908,1746480632529,-348.81,0.00019917,2]
[360017911,1746480632540,-450.0,0.00019917,2]
[360017913,1746480632550,-465.68,0.00019917,2]
[360017914,1746480632559,-500.0,0.00019973,2]
[360017917,1746480632569,-504.42525999,0.00019973,2]
[360017919,1746480632578,-4313.4788236,0.00019986,2]
[360017921,1746480632590,-1079.2924267,0.00019986,2]
[360017923,1746480632599,-43142.0393103,0.00019986,2]
[360017925,1746480632608,-1186.4992106,0.00019986,2]
[360017927,1746480632617,-1364.74,0.00019987,2]
[360017929,1746480632628,-937.515,0.0001999,2]
[360017931,1746480632638,-390.696849,0.00019996,2]
[360017933,1746480632647,-777.899378,0.00019996,2]
[360017935,1746480632656,-450.0,0.00019996,2]
[360017937,1746480632665,-450.0,0.00019996,2]
[360017939,1746480632675,-450.0,0.00019996,2]
[360017941,1746480632684,-450.0,0.00019996,2]
[360017943,1746480632694,-450.0,0.00019996,2]
[360017945,1746480632703,-450.0,0.00019996,2]
[360017947,1746480632713,-450.0,0.00019996,2]
[360017949,1746480632723,-450.0,0.00019996,2]
[360017951,1746480632732,-450.0,0.00019996,2]
[360017953,1746480632742,-450.0,0.00019996,2]
[360017955,1746480632751,-553.02855182,0.00019996,2]
[360017957,1746480632760,-525.4820768,0.00019996,2]
[360017959,1746480632769,-450.0,0.00019996,2]
[360017961,1746480632779,-450.0,0.00019996,2]
[360017963,1746480632788,-450.0,0.00019996,2]
[360017965,1746480632798,-450.0,0.00019996,2]
[360017967,1746480632807,-472.39410047,0.00019996,2]
[360017969,1746480632817,-523.38360169,0.00019996,2]
[360017971,1746480632827,-450.0,0.00019996,2]
[360017973,1746480632836,-453.17,0.00019996,2]
[360017975,1746480632846,-530.24,0.00019996,2]
[360017977,1746480632855,-185.67,0.00019996,2]
[360017979,1746480632865,-450.0,0.00019996,2]
[360017981,1746480632874,-450.0,0.00019996,2]
[360017983,1746480632883,-450.0,0.00019996,2]
[360017985,1746480632892,-450.0,0.00019996,2]
[360017987,1746480632901,-494.32,0.00019996,2]
[360017989,1746480632911,-450.0,0.00019996,2]
[360017991,1746480632920,-450.0,0.00019996,2]
[360017993,1746480632929,-450.0,0.00019996,2]
[360017995,1746480632939,-450.0,0.00019996,2]
[360017997,1746480632949,-450.0,0.00019996,2]
[360017999,1746480632958,-450.0,0.00019996,2]
[360018001,1746480632967,-558.33,0.00019996,2]
[360018003,1746480632976,-888.19,0.00019996,2]
[360018005,1746480632986,-450.0,0.00019996,2]
[360018007,1746480632996,-450.0,0.00019996,2]
[360018009,1746480633006,-450.0,0.00019996,2]
[360018011,1746480633016,-450.0,0.00019996,2]
[360018013,1746480633026,-450.0,0.00019996,2]
[360018015,1746480633036,-450.0,0.00019996,2]
[360018017,1746480633046,-751.65,0.00019996,2]
[360018019,1746480633055,-450.0,0.00019996,2]
[360018021,1746480633065,-450.0,0.00019996,2]
[360018023,1746480633075,-450.0,0.00019996,2]
[360018025,1746480633086,-591.16,0.00019996,2]
[360018027,1746480633096,-548.0,0.00019996,2]
[360018029,1746480633106,-239.85,0.00019996,2]
[360018031,1746480633116,-450.0,0.00019996,2]
[360018033,1746480633125,-450.0,0.00019996,2]
[360018035,1746480633136,-450.0,0.00019996,2]
[360018037,1746480633146,-566.6,0.00019996,2]
[360018039,1746480633156,-450.0,0.00019997,2]
[360018041,1746480633166,-450.0,0.00019997,2]
[360018043,1746480633175,-450.0,0.00019997,2]
[360018045,1746480633185,-450.0,0.00019997,2]
[360018047,1746480633194,-450.0,0.00019997,2]
[360018048,1746480633203,-450.0,0.00019997,2]
[360018049,1746480633213,-450.0,0.00019997,2]
[360018050,1746480633223,-450.0,0.00019997,2]
[360018051,1746480633231,-441.81501817,0.00019997,2]
[360018052,1746480633241,-450.0,0.00019997,2]
[360018053,1746480633251,-450.0,0.00019997,2]
[360018054,1746480633260,-450.0,0.00019997,2]
[360018055,1746480633270,-450.0,0.00019997,2]
[360018056,1746480633279,-450.0,0.00019997,2]
[360018057,1746480633289,-450.0,0.00019997,2]
[360018058,1746480633298,-450.0,0.00019997,2]
[360018059,1746480633307,-586.37,0.00019997,2]
[360018060,1746480633317,-450.0,0.00019997,2]
[360018061,1746480633326,-450.0,0.00019997,2]
[360018062,1746480633335,-450.0,0.00019997,2]
[360018063,1746480633345,-450.0,0.00019997,2]
[360018064,1746480633355,-450.0,0.00019997,2]
[360018065,1746480633364,-450.0,0.00019997,2]
[360018066,1746480633373,-450.0,0.00019997,2]
[360018067,1746480633383,-450.0,0.00019997,2]
[360018068,1746480633392,-527.32,0.00019997,2]
[360018069,1746480633402,-514.7,0.00019997,2]
[360018071,1746480633411,-450.0,0.00019997,2]
[360018073,1746480633421,-450.0,0.00019997,2]
[360018075,1746480633430,-450.0,0.00019997,2]
[360018077,1746480633440,-450.0,0.00019997,2]
[360018079,1746480633450,-450.0,0.00019997,2]
[360018081,1746480633460,-450.0,0.00019997,2]
[360018083,1746480633470,-450.0,0.00019997,2]
[360018085,1746480633479,-450.0,0.00019997,2]
[360018087,1746480633489,-450.0,0.00019997,2]
[360018089,1746480633498,-450.0,0.00019997,2]
[360018091,1746480633508,-450.0,0.00019997,2]
[360018093,1746480633517,-11313.35706333,0.00019997,2]
[360018098,1746480633553,-877.85875134,0.00019997,2]
[360018100,1746480633565,-4477.84418533,0.00019997,2]
[360018102,1746480633576,-450.0,0.00019997,2]
[360018104,1746480633585,-450.0,0.00019997,2]
[360018106,1746480633595,-450.0,0.00019997,2]
[360018108,1746480633605,-450.0,0.00019997,2]
[360018110,1746480633615,-166.22,0.00019997,2]
[360018112,1746480633624,-388.8929571,0.00019997,2]
[360018115,1746480633635,-61.1070429,0.00019997,2]
[360018117,1746480633646,-257.8929571,0.00019997,2]
[360018135,1746480638099,-3492.55755852,0.000199,2]
[360018136,1746480638108,-192.1070429,0.00019997,2]
[360018137,1746480638118,-186.65,0.00019997,2]
[360018138,1746480638127,-450.0,0.00019997,2]
[360018139,1746480638136,-634.54,0.00019997,2]
[360018140,1746480638146,-450.0,0.00019997,2]
[360018141,1746480638155,-470.41,0.00019997,2]
[360018142,1746480638164,-450.0,0.00019997,2]
[360018143,1746480638173,-450.0,0.00019997,2]
[360018144,1746480638182,-669.96,0.00019997,2]
[360018145,1746480638191,-558.70862296,0.00019997,2]
[360018146,1746480638203,-169.51137704,0.00019997,2]
[360018147,1746480638211,-561.05,0.00019997,2]
[360018148,1746480638221,-470.0,0.00019997,2]
[360018149,1746480638231,-450.0,0.00019997,2]
[360018150,1746480638241,-450.0,0.00019997,2]
[360018151,1746480638251,-1568.68862335,0.00019997,2]
[360018152,1746480638264,-1042.82955653,0.00019997,2]
[360018160,1746480640200,-1795.24182012,0.00019997,2]
[360018161,1746480640210,-127.43359317,0.00019998,2]
[360018162,1746480640221,-322.56640683,0.00019998,2]
[360018163,1746480640230,-209.30291157,0.00019998,2]
[360018164,1746480640242,-240.69708843,0.00019998,2]
[360018165,1746480640251,-450.0,0.00019998,2]
[360018166,1746480640260,-450.0,0.00019998,2]
[360018167,1746480640270,-500.0,0.00019998,2]
[360018168,1746480640279,-450.0,0.00019998,2]
[360018169,1746480640437,-450.0,0.00019998,2]
[360018170,1746480640447,-450.0,0.00019998,2]
[360018171,1746480640456,-450.0,0.00019998,2]
[360018172,1746480640466,-450.0,0.00019998,2]
[360018173,1746480640475,-450.0,0.00019998,2]
[360018174,1746480640485,-450.0,0.00019998,2]
[360018175,1746480640495,-450.0,0.00019998,2]
[360018176,1746480640504,-450.0,0.00019998,2]
[360018177,1746480640513,-450.0,0.00019998,2]
[360018178,1746480640523,-450.0,0.00019998,2]
[360018179,1746480640532,-450.0,0.00019998,2]
[360018180,1746480640541,-450.0,0.00019998,2]
[360018181,1746480640550,-491.23935326,0.00019998,2]
[360018182,1746480640560,-402.29,0.00019998,2]
[360018183,1746480640569,-450.0,0.00019998,2]
[360018184,1746480640578,-450.0,0.00019998,2]
[360018185,1746480640587,-450.0,0.00019998,2]
[360018186,1746480640597,-499.71,0.00019998,2]